bitfinex/quotes_SOLUSD_20251030
["timestamp","ask_amount","ask_price","bid_price","bid_amount"]
[1761832312886,5.47221421,186.77,186.74,6.06503909]
[1761832313104,5.47221421,186.77,186.75,0.14216157]
[1761832313283,5.47221421,186.78,186.75,0.85216157]
[1761832313484,26.06421421,186.79,186.75,0.85216157]
[1761832313811,5.47221421,186.76,186.75,0.14216157]
[1761832314020,5.47221421,186.77,186.75,0.14216157]
[1761832314314,5.47221421,186.78,186.75,0.14216157]
[1761832314612,5.47221421,186.77,186.76,5.35446562]
[1761832314811,5.47221421,186.77,186.75,0.14216157]
[1761832315002,5.47221421,186.77,186.75,5.49680957]
[1761832315801,5.47221421,186.76,186.73,0.14216157]
[1761832316007,5.47221421,186.75,186.73,5.49748744]
[1761832316201,5.47221421,186.76,186.73,19.59580211]
[1761832316715,5.47221421,186.76,186.74,0.71]
[1761832316912,5.47221421,186.77,186.74,0.71]
[1761832317112,26.06421421,186.76,186.75,0.14216157]
[1761832317304,26.06421421,186.76,186.73,18.88580211]
[1761832317305,26.06421421,186.76,186.73,18.74364054]
[1761832317510,26.06421421,186.76,186.74,0.14216157]
[1761832317712,5.47221421,186.75,186.74,0.14216157]
[1761832317906,26.06421421,186.76,186.74,0.14216157]
[1761832318112,5.47221421,186.75,186.74,0.14216157]
[1761832318303,20.592,186.76,186.74,0.14216157]
[1761832318488,26.06421421,186.76,186.75,5.35475234]
[1761832319430,26.06421421,186.76,186.74,5.35497035]
[1761832319606,5.47221421,186.75,186.73,5.3552905]
[1761832319923,5.47221421,186.74,186.73,5.49745207]
[1761832320327,5.47221421,186.74,186.73,5.3552905]
[1761832320531,5.47221421,186.74,186.72,0.14216157]
[1761832320727,5.47221421,186.74,186.7,5.55595537]
[1761832320728,20.592,186.71,186.7,0.2]
[1761832321029,26.06421421,186.71,186.7,0.2]
[1761832321405,26.06421421,186.71,186.67,0.2]
[1761832321735,21.102,186.7,186.67,0.2]
[1761832322039,21.102,186.7,186.67,5.55704719]
[1761832322040,5.47221421,186.68,186.67,5.55704719]
[1761832322213,26.06421421,186.68,186.67,5.55704719]
[1761832322605,26.06421421,186.68,186.67,0.2]
[1761832323314,5.47221421,186.68,186.67,0.2]
[1761832323902,20.592,186.75,186.67,6.26704719]
[1761832324130,0.51,186.77,186.7,5.61437578]
[1761832324432,20.592,186.73,186.71,18.74564832]
[1761832324806,20.592,186.73,186.72,0.14216157]
[1761832325008,5.47221421,186.76,186.72,0.14216157]
[1761832325260,0.51,186.82,186.71,18.74564832]
[1761832325423,5.47221421,186.79,186.73,5.61437578]
[1761832325751,20.592,186.83,186.75,0.14216157]
[1761832326040,5.47221421,186.78,186.74,0.14216157]
[1761832326253,5.47221421,186.75,186.71,5.35589952]
[1761832326453,20.592,186.75,186.73,5.35532587]
[1761832326610,20.592,186.75,186.74,0.14216157]
[1761832326809,20.592,186.75,186.74,0.85216157]
[1761832327028,20.592,186.75,186.73,5.35532587]
[1761832327029,26.06421421,186.75,186.73,5.35532587]
[1761832327234,20.592,186.76,186.71,5.35563871]
[1761832327430,5.98221421,186.75,186.71,5.35563871]
[1761832327649,8.32951022,186.72,186.67,0.92]
[1761832327811,20.592,186.71,186.68,0.72]
[1761832328013,28.92151022,186.71,186.68,0.72]
[1761832328243,0.51,186.79,186.69,0.14216157]
[1761832328545,20.592,186.71,186.7,5.35618639]
[1761832328938,8.32951022,186.71,186.7,5.49834796]
[1761832329126,21.102,186.77,186.68,5.35676023]
[1761832329313,8.32951022,186.71,186.68,5.35676023]
[1761832329517,8.32951022,186.69,186.68,5.35676023]
[1761832329946,0.51,186.72,186.68,5.35676023]
[1761832330106,0.51,186.72,186.68,18.7486608]
[1761832330107,8.32951022,186.71,186.68,18.7486608]
[1761832330307,8.32951022,186.71,186.69,0.82216157]
[1761832330511,103.4,186.8,186.71,0.14216157]
[1761832330512,8.32951022,186.73,186.71,0.14216157]
[1761832330722,8.32951022,186.72,186.7,5.35618639]
[1761832330912,8.32951022,186.71,186.7,5.49834796]
[1761832331321,8.32951022,186.71,186.69,5.35620123]
[1761832331517,8.32951022,186.7,186.69,5.35620123]
[1761832332224,8.32951022,186.7,186.68,0.14216157]
[1761832332225,8.32951022,186.7,186.68,5.49890551]
[1761832332415,8.83951022,186.69,186.67,0.2]
[1761832332613,8.32951022,186.68,186.67,0.2]
[1761832334332,8.32951022,186.68,186.67,5.55704719]
[1761832334540,8.32951022,186.69,186.67,6.27704719]
[1761832334750,8.32951022,186.68,186.67,18.94966517]
[1761832334923,8.32951022,186.68,186.67,5.55704719]
[1761832335439,8.32951022,186.68,186.67,5.69920876]
[1761832335633,20.592,186.74,186.67,5.69920876]
[1761832335844,8.32951022,186.68,186.67,5.69920876]
[1761832336343,20.592,186.68,186.67,19.81182674]
[1761832336926,8.32951022,186.73,186.68,0.14216157]
[1761832337134,8.32951022,186.74,186.68,9.19167179]
[1761832337428,8.32951022,186.74,186.7,0.14216157]
[1761832337630,8.32951022,186.75,186.72,0.14216157]
[1761832337844,8.32951022,186.74,186.72,0.14216157]
[1761832338058,8.32951022,186.75,186.72,0.86216157]
[1761832338262,8.32951022,186.77,186.72,0.86216157]
[1761832338425,8.32951022,186.78,186.73,8.32951022]
[1761832338625,103.4,186.77,186.74,18.74263681]
[1761832338841,103.4,186.77,186.75,0.14216157]
[1761832339347,103.4,186.77,186.75,0.86216157]
[1761832339863,101.95282636,186.77,186.75,0.86216157]
[1761832340055,110.28233658,186.77,186.75,0.86216157]
[1761832340254,110.28233658,186.77,186.72,21.71850683]
[1761832340255,8.32951022,186.76,186.73,5.35516801]
[1761832340458,8.32951022,186.74,186.73,5.49732958]
[1761832340628,28.92151022,186.74,186.73,5.35516801]
[1761832340827,28.92151022,186.74,186.72,0.14216157]
[1761832341039,110.28233658,186.73,186.72,0.14216157]
[1761832341239,8.32951022,186.73,186.67,0.2]
[1761832341440,8.32951022,186.68,186.67,0.2]
[1761832341655,8.32951022,186.68,186.67,5.55704719]
[1761832341868,8.32951022,186.68,186.67,0.2]
[1761832342335,0.51,186.69,186.67,0.2]
[1761832342676,28.92151022,186.68,186.67,0.2]
[1761832342831,28.92151022,186.68,186.67,5.55704719]
[1761832343029,28.92151022,186.68,186.67,6.27704719]
[1761832343030,20.592,186.68,186.67,6.27704719]
[1761832343261,28.92151022,186.68,186.67,5.55704719]
[1761832343433,28.92151022,186.68,186.67,0.2]
[1761832343862,20.592,186.68,186.67,5.55704719]
[1761832344169,28.92151022,186.68,186.67,5.55704719]
[1761832345350,28.92151022,186.68,186.67,5.69920876]
[1761832345554,8.32951022,186.68,186.67,18.94966517]
[1761832345746,8.32951022,186.69,186.67,18.94966517]
[1761832346052,8.83951022,186.68,186.67,0.2]
[1761832348052,0.51,186.68,186.67,0.2]
[1761832348257,8.32951022,186.68,186.67,0.2]
[1761832348763,26.44784813,186.68,186.67,0.2]
[1761832348939,20.592,186.65,186.64,0.2]
[1761832349140,29.43151022,186.65,186.64,0.2]
[1761832351162,23.47537534,186.68,186.64,0.2]
[1761832351163,0.51,186.67,186.64,19.67267895]
[1761832351460,20.592,186.65,186.64,19.67267895]
[1761832351641,20.592,186.65,186.64,19.09484052]
[1761832351836,8.32951022,186.68,186.64,19.09484052]
[1761832352038,0.51,186.73,186.64,19.09484052]
[1761832352235,8.83951022,186.73,186.65,9.19167179]
[1761832352777,8.83951022,186.73,186.68,0.14216157]
[1761832353067,8.32951022,186.7,186.65,18.89383582]
[1761832353363,20.592,186.69,186.67,0.14216157]
[1761832353744,20.592,186.69,186.68,0.86216157]
[1761832353951,0.51,186.72,186.69,0.14216157]
[1761832354146,8.32951022,186.74,186.69,0.14216157]
[1761832354147,0.51,186.79,186.69,8.47167179]
[1761832354365,8.32951022,186.75,186.71,0.14216157]
[1761832354553,20.592,186.73,186.71,0.14216157]
[1761832354757,8.32951022,186.75,186.72,5.35561268]
[1761832354960,20.592,186.73,186.72,5.35561268]
[1761832355162,0.51,186.8,186.72,18.74464438]
[1761832355371,8.32951022,186.76,186.72,5.35561268]
[1761832355662,0.51,186.8,186.66,5.49949576]
[1761832355663,28.92151022,186.73,186.66,5.49949576]
[1761832355865,8.32951022,186.71,186.66,6.07733419]
[1761832356070,8.32951022,186.71,186.67,0.86216157]
[1761832356071,20.592,186.69,186.67,0.86216157]
[1761832356681,8.32951022,186.74,186.67,0.86216157]
[1761832356682,20.592,186.71,186.67,0.86216157]
[1761832356865,8.83951022,186.7,186.65,0.14216157]
[1761832357050,8.83951022,186.7,186.65,0.86216157]
[1761832357258,0.51,186.7,186.65,19.61383582]
[1761832357575,20.592,186.69,186.65,19.61383582]
[1761832357782,20.592,186.69,186.67,0.14216157]
[1761832358272,20.592,186.69,186.68,0.72]
[1761832358465,21.102,186.69,186.67,0.72]
[1761832358666,29.43151022,186.69,186.65,5.35762121]
[1761832358867,20.592,186.67,186.66,0.72]
[1761832359274,20.592,186.66,186.65,5.35762121]
[1761832359574,20.592,186.66,186.64,0.2]
[1761832359774,8.83951022,186.65,186.64,0.2]
[1761832360882,8.83951022,186.65,186.64,5.55790827]
[1761832361276,0.51,186.72,186.65,0.14216157]
[1761832361575,8.83951022,186.72,186.67,0.14216157]
[1761832361756,8.32951022,186.71,186.67,0.14216157]
[1761832361954,0.51,186.7,186.67,0.86216157]
[1761832362161,0.51,186.73,186.67,0.86216157]
[1761832362367,20.592,186.69,186.67,0.86216157]
[1761832362580,8.83951022,186.71,186.67,0.86216157]
[1761832362963,20.592,186.68,186.67,6.21920876]
[1761832363566,20.592,186.68,186.67,6.07704719]
[1761832363771,20.592,186.68,186.67,5.35704719]
[1761832364085,20.592,186.68,186.67,6.07704719]
[1761832364962,20.592,186.68,186.65,0.14216157]
[1761832365167,21.102,186.68,186.66,0.72]
[1761832365369,20.592,186.68,186.66,0.72]
[1761832367300,20.592,186.68,186.67,5.35704719]
[1761832367988,20.592,186.68,186.67,6.07704719]
[1761832369468,20.592,186.68,186.67,6.21920876]
[1761832370391,73.42835964,186.78,186.68,10.65098926]
[1761832370689,20.592,186.74,186.71,0.14216157]
[1761832371073,20.592,186.74,186.73,0.14216157]
[1761832371266,8.32951022,186.82,186.74,18.74263681]
[1761832371468,0.51,186.81,186.75,8.47167179]
[1761832371682,20.592,186.79,186.75,0.14216157]
[1761832371893,65.09884942,186.86,186.74,27.79214703]
[1761832371894,0.51,186.78,186.74,5.35503909]
[1761832372064,8.83951022,186.78,186.73,5.49742944]
[1761832372263,20.592,186.75,186.72,0.14216157]
[1761832372470,20.592,186.73,186.72,0.14216157]
[1761832372875,20.592,186.74,186.72,0.86216157]
[1761832373097,0.51,186.76,186.72,0.86216157]
[1761832373098,20.592,186.75,186.72,0.86216157]
[1761832373504,20.592,186.74,186.72,0.86216157]
[1761832373665,20.592,186.74,186.72,6.21777304]
[1761832374915,28.92151022,186.76,186.72,6.07561147]
[1761832375094,28.92151022,186.76,186.71,0.14216157]
[1761832375095,0.51,186.75,186.71,5.49804182]
[1761832375271,20.592,186.74,186.71,19.60779062]
[1761832375473,20.592,186.73,186.71,19.60779062]
[1761832376065,20.592,186.73,186.71,5.49804182]
[1761832376272,20.592,186.73,186.71,6.21804182]
[1761832376695,8.32951022,186.76,186.71,19.60779062]
[1761832376893,20.592,186.73,186.71,19.60779062]
[1761832377192,8.83951022,186.72,186.64,0.2]
[1761832377391,0.51,186.72,186.64,5.5578188]
[1761832377597,8.32951022,186.68,186.64,19.67258948]
[1761832377889,0.51,186.67,186.64,19.67258948]
[1761832378094,0.51,186.67,186.64,5.5578188]
[1761832378582,20.592,186.66,186.64,5.5578188]
[1761832378790,8.32951022,186.7,186.65,0.72]
[1761832378971,20.592,186.67,186.66,0.14216157]
[1761832379386,20.592,186.67,186.66,0.86216157]
[1761832379582,8.32951022,186.68,186.66,5.49949576]
[1761832380300,20.592,186.65,186.64,0.2]
[1761832380493,28.92151022,186.65,186.64,6.27790827]
[1761832380808,28.92151022,186.65,186.64,5.55790827]
[1761832380988,8.32951022,186.66,186.64,5.55790827]
[1761832381184,8.32951022,186.65,186.64,0.2]
[1761832381574,8.32951022,186.65,186.64,5.55790827]
[1761832381777,1e-08,186.66,186.64,6.27790827]
[1761832381981,103.4,186.69,186.66,0.14216157]
[1761832382278,111.72951022,186.69,186.66,0.14216157]
[1761832382606,103.4,186.69,186.66,0.86216157]
[1761832382896,9.78882769,186.78,186.64,27.28218917]
[1761832382897,20.592,186.67,186.64,0.2]
[1761832383116,103.4,186.66,186.64,5.55783624]
[1761832383600,103.4,186.65,186.64,0.2]
[1761832383773,104.08,186.65,186.64,0.2]
[1761832383984,0.68,186.65,186.64,0.2]
[1761832384379,10.61098926,186.65,186.64,0.2]
[1761832384812,10.61098926,186.65,186.56,0.2]
[1761832384813,20.592,186.62,186.56,0.2]
[1761832385101,20.592,186.62,186.5,0.2]
[1761832385102,20.592,186.54,186.5,0.2]
[1761832385302,8.32951022,186.51,186.5,0.2]
[1761832385513,23.47998071,186.51,186.5,0.2]
[1761832385808,30.38082769,186.48,186.47,0.2]
[1761832386107,28.92151022,186.48,186.47,0.2]
[1761832386405,9.78882769,186.47,186.45,0.2]
[1761832386595,18.11833791,186.46,186.45,0.2]
[1761832386901,18.63833791,186.46,186.45,0.2]
[1761832387784,5.50113246,186.46,186.45,0.2]
[1761832388672,6.02113246,186.46,186.45,0.2]
[1761832390004,5.50113246,186.46,186.45,0.2]
[1761832390707,20.592,186.43,186.42,0.2]
[1761832390907,26.09313246,186.43,186.42,0.2]
[1761832391209,26.61313246,186.43,186.42,0.2]
[1761832391505,26.09313246,186.43,186.42,0.2]
[1761832393710,5.50113246,186.44,186.42,5.5642313]
[1761832393913,5.50113246,186.43,186.42,0.2]
[1761832394125,20.592,186.49,186.42,18.97480956]
[1761832394411,20.592,186.43,186.42,0.2]
[1761832394611,20.592,186.43,186.42,6.2742313]
[1761832394910,5.50113246,186.46,186.43,0.14216157]
[1761832395122,0.52,186.52,186.43,0.85216157]
[1761832395123,5.50113246,186.47,186.43,0.85216157]
[1761832395408,20.592,186.44,186.43,0.85216157]
[1761832395711,20.592,186.44,186.43,6.21610514]
[1761832395911,20.592,186.44,186.43,0.71]
[1761832396111,20.592,186.44,186.42,0.2]
[1761832396112,5.50113246,186.44,186.42,0.2]
[1761832396284,5.50113246,186.43,186.42,5.5642235]
[1761832396484,20.592,186.45,186.42,5.5642235]
[1761832396485,20.592,186.45,186.42,5.56409317]
[1761832396698,5.50113246,186.44,186.42,6.27409317]
[1761832396892,5.50113246,186.44,186.42,0.91]
[1761832397091,6.02113246,186.43,186.42,0.2]
[1761832397519,20.592,186.4,186.35,0.71]
[1761832397815,20.592,186.4,186.35,0.14216157]
[1761832397816,5.50113246,186.37,186.35,0.14216157]
[1761832398120,5.50113246,186.37,186.35,0.71]
[1761832398605,5.50113246,186.36,186.35,0.71]
[1761832398802,5.50113246,186.36,186.32,0.71]
[1761832398983,5.50113246,186.35,186.33,0.71]
[1761832399602,5.50113246,186.35,186.31,5.36739842]
[1761832399924,5.50113246,186.35,186.32,0.14216157]
[1761832400216,5.50113246,186.35,186.32,0.85216157]
[1761832400618,5.50113246,186.34,186.32,0.85216157]
[1761832400820,5.50113246,186.34,186.32,0.71]
[1761832401319,5.50113246,186.36,186.32,0.71]
[1761832401690,26.09313246,186.36,186.33,5.3668223]
[1761832402014,5.50113246,186.36,186.33,5.3668223]
[1761832402326,5.50113246,186.34,186.33,5.3668223]
[1761832402507,5.50113246,186.35,186.33,0.71]
[1761832402704,20.592,186.36,186.33,0.71]
[1761832402912,26.09313246,186.36,186.33,0.71]
[1761832403220,5.50113246,186.35,186.31,5.50955999]
[1761832403396,5.50113246,186.35,186.33,0.71]
[1761832403597,5.50113246,186.35,186.32,0.71]
[1761832403798,26.09313246,186.33,186.28,0.71]
[1761832404029,5.50113246,186.29,186.24,5.3694158]
[1761832404326,20.592,186.22,186.2,0.71]
[1761832404621,20.592,186.22,186.19,5.57080565]
[1761832404622,5.50113246,186.22,186.19,5.57080565]
[1761832404798,20.592,186.2,186.19,5.57080565]
[1761832405125,5.50113246,186.25,186.19,24.49908242]
[1761832405288,5.50113246,186.25,186.2,0.71]
[1761832405625,20.592,186.22,186.19,0.2]
[1761832405835,5.50113246,186.2,186.19,0.2]
[1761832406388,6.02113246,186.2,186.19,0.2]
[1761832407200,5.50113246,186.2,186.19,0.2]
[1761832407525,6.02113246,186.2,186.19,0.2]
[1761832407693,0.52,186.23,186.19,0.2]
[1761832407895,0.52,186.23,186.19,5.57075904]
[1761832407896,5.50113246,186.2,186.19,5.57075904]
[1761832408108,5.50113246,186.2,186.19,0.2]
[1761832408904,26.09313246,186.2,186.19,0.2]
[1761832409110,0.14216157,186.29,186.19,0.2]
[1761832409111,5.50113246,186.22,186.19,6.28085772]
[1761832409322,5.50113246,186.21,186.19,5.57085772]
[1761832409517,5.50113246,186.2,186.19,0.2]
[1761832409821,6.02113246,186.2,186.19,0.2]
[1761832410023,5.50113246,186.2,186.19,0.2]
[1761832410325,0.52,186.27,186.19,5.57084449]
[1761832410531,20.592,186.21,186.19,5.57084449]
[1761832410705,4.93713908,186.31,186.2,0.85216157]
[1761832411037,5.50113246,186.25,186.21,0.14216157]
[1761832411205,4.93713908,186.31,186.23,0.14216157]
[1761832411206,5.50113246,186.26,186.23,0.14216157]
[1761832411524,20.592,186.24,186.23,0.14216157]
[1761832411723,20.592,186.24,186.23,6.22186569]
[1761832412298,0.52,186.36,186.23,25.14725847]
[1761832412524,5.50113246,186.24,186.23,5.51186569]
[1761832412727,5.50113246,186.25,186.23,5.36970412]
[1761832412927,5.50113246,186.29,186.24,0.85216157]
[1761832413102,6.02113246,186.34,186.24,0.85216157]
[1761832413103,5.50113246,186.28,186.24,0.85216157]
[1761832413308,5.50113246,186.26,186.23,5.36970412]
[1761832413528,5.50113246,186.25,186.23,5.36970412]
[1761832413831,5.50113246,186.24,186.23,5.36970412]
[1761832414152,5.50113246,186.24,186.21,6.08026401]
[1761832414303,5.50113246,186.22,186.21,5.37026401]
[1761832414506,26.09313246,186.22,186.21,5.37026401]
[1761832414747,20.592,186.22,186.21,6.08026401]
[1761832415100,7.64329402,186.34,186.21,6.08026401]
[1761832415101,0.52,186.35,186.22,0.14216157]
[1761832415329,5.50113246,186.32,186.25,5.50113246]
[1761832415643,0.52,186.43,186.31,0.14216157]
[1761832415808,0.52,186.4,186.28,0.14216157]
[1761832416010,5.50113246,186.33,186.31,5.36739842]
[1761832416242,0.52,186.4,186.29,14.12943238]
[1761832416243,25.39601335,186.4,186.29,0.71]
[1761832416412,5.50113246,186.32,186.29,0.71]
[1761832416610,5.50113246,186.32,186.29,6.07785302]
[1761832416836,5.50113246,186.3,186.26,0.71]
[1761832417011,0.52,186.36,186.26,0.71]
[1761832417012,5.50113246,186.29,186.26,0.71]
[1761832417335,26.09313246,186.33,186.27,5.64329403]
[1761832417635,20.0586184,186.4,186.27,0.14216157]
[1761832417636,5.50113246,186.31,186.27,0.14216157]
[1761832417831,5.50113246,186.32,186.28,0.71]
[1761832418129,5.50113246,186.32,186.29,5.36797466]
[1761832418330,20.592,186.36,186.29,6.07797466]
[1761832418538,5.50113246,186.32,186.29,5.36797466]
[1761832418713,20.592,186.33,186.28,19.49889825]
[1761832418915,5.50113246,186.31,186.28,6.07824118]
[1761832419242,5.50113246,186.31,186.29,0.72]
[1761832419613,5.50113246,186.32,186.29,0.72]
[1761832419953,26.09313246,186.33,186.29,0.72]
[1761832420114,20.592,186.33,186.3,5.36768652]
[1761832420312,26.09313246,186.33,186.29,0.72]
[1761832420630,5.50113246,186.31,186.29,0.72]
[1761832420832,5.50113246,186.31,186.28,5.36825445]
[1761832421005,5.50113246,186.3,186.29,0.72]
[1761832421208,20.592,186.33,186.29,0.72]
[1761832421209,5.50113246,186.31,186.29,0.72]
[1761832421431,20.592,186.33,186.29,0.72]
[1761832421633,5.50113246,186.31,186.29,0.72]
[1761832421932,5.50113246,186.32,186.29,0.86216157]
[1761832422336,5.50113246,186.31,186.29,6.08784224]
[1761832422514,20.592,186.33,186.27,5.36827166]
[1761832422515,108.90113246,186.3,186.27,5.36827166]
[1761832422708,108.90113246,186.3,186.25,14.14226258]
[1761832422709,5.50113246,186.28,186.25,5.36895408]
[1761832422915,20.592,186.29,186.25,5.36895408]
[1761832422916,5.50113246,186.27,186.25,5.36895408]
[1761832423124,5.50113246,186.28,186.25,6.08895408]
[1761832423649,5.50113246,186.27,186.25,6.08895408]
[1761832424014,5.50113246,186.27,186.24,0.14216157]
[1761832424218,5.50113246,186.28,186.26,0.72]
[1761832424659,5.50113246,186.27,186.23,18.79382672]
[1761832424953,5.50113246,186.28,186.24,0.14216157]
[1761832425312,5.50113246,186.28,186.24,0.86216157]
[1761832425520,5.50113246,186.26,186.23,5.36970412]
[1761832425717,20.592,186.27,186.24,0.72]
[1761832425918,103.92,186.37,186.26,5.50113246]
[1761832426112,20.592,186.29,186.27,18.78992859]
[1761832426422,20.592,186.3,186.28,0.14216157]
[1761832426623,20.592,186.29,186.24,0.72]
[1761832426812,20.592,186.3,186.24,6.22113246]
[1761832427017,5.50113246,186.29,186.24,6.22113246]
[1761832427237,21.112,186.34,186.25,0.86216157]
[1761832427435,26.09313246,186.34,186.28,5.50113246]
[1761832427753,4.38496593,186.4,186.32,5.50113246]
[1761832427754,5.50113246,186.38,186.32,5.50113246]
[1761832428053,15.15249076,186.44,186.35,5.50113246]
[1761832428054,5.50113246,186.41,186.35,5.50113246]
[1761832428253,5.50113246,186.4,186.34,5.64329403]
[1761832428413,20.592,186.42,186.35,5.50113246]
[1761832428619,20.592,186.38,186.35,5.50113246]
[1761832428917,20.592,186.37,186.34,6.36329403]
[1761832429119,4.85995575,186.43,186.35,0.72]
[1761832429831,20.592,186.43,186.35,6.22113246]
[1761832430036,20.592,186.39,186.36,5.64329403]
[1761832430222,5.50113246,186.44,186.38,5.64329403]
[1761832430414,5.50113246,186.44,186.38,0.14216157]
[1761832430646,5.50113246,186.42,186.38,0.14216157]
[1761832430850,20.592,186.4,186.38,0.86216157]
[1761832431116,5.50113246,186.45,186.39,5.50113246]
[1761832431337,20.592,186.41,186.38,6.36329403]
[1761832431537,5.50113246,186.44,186.38,6.36329403]
[1761832431968,20.592,186.41,186.38,0.86216157]
[1761832432170,20.592,186.41,186.38,6.22725724]
[1761832432371,5.50113246,186.41,186.37,0.14216157]
[1761832432551,5.50113246,186.41,186.37,0.86216157]
[1761832432755,5.50113246,186.42,186.37,0.86216157]
[1761832433175,5.50113246,186.42,186.37,6.22783201]
[1761832433483,103.4,186.41,186.37,6.22783201]
[1761832433774,20.592,186.38,186.34,10.86766675]
[1761832433939,20.592,186.38,186.37,0.72]
[1761832434138,20.592,186.4,186.38,5.36538255]
[1761832434372,20.592,186.39,186.38,5.50754412]
[1761832435165,103.4,186.42,186.38,25.14213295]
[1761832435358,123.992,186.42,186.39,0.72]
[1761832435541,123.992,186.42,186.39,6.22113246]
[1761832435742,123.992,186.42,186.39,0.72]
[1761832436248,123.992,186.42,186.4,5.36480686]
[1761832437340,123.992,186.42,186.4,11.58593932]
[1761832437578,20.592,186.42,186.41,0.86216157]
[1761832437774,20.592,186.42,186.41,6.36329403]
[1761832438145,20.592,186.42,186.41,0.86216157]
[1761832438356,20.592,186.44,186.41,25.13911077]
[1761832438547,0.52,186.52,186.44,0.14216157]
[1761832438775,21.112,186.52,186.45,5.50113246]
[1761832439077,5.50113246,186.52,186.45,6.22113246]
[1761832439486,5.50113246,186.51,186.45,6.22113246]
[1761832439662,5.50113246,186.48,186.44,0.14216157]
[1761832440148,5.50113246,186.48,186.45,0.72]
[1761832440350,20.592,186.49,186.46,5.36308055]
[1761832440548,20.592,186.48,186.45,0.72]
[1761832440879,20.592,186.48,186.43,6.36329403]
[1761832441079,20.592,186.47,186.43,6.36329403]
[1761832441381,5.50113246,186.48,186.43,0.86216157]
[1761832441792,20.592,186.46,186.43,6.36329403]
[1761832442157,20.592,186.46,186.43,0.14216157]
[1761832442346,20.592,186.46,186.44,0.72]
[1761832442559,20.592,186.48,186.44,0.72]
[1761832442757,20.592,186.46,186.44,6.08364736]
[1761832443279,20.592,186.48,186.44,0.72]
[1761832443648,20.592,186.46,186.44,0.72]
[1761832444483,20.592,186.46,186.43,0.14216157]
[1761832444693,20.592,186.42,186.38,0.72]
[1761832444999,5.50113246,186.4,186.34,5.50113246]
[1761832445377,129.49313246,186.41,186.35,6.22113246]
[1761832445586,123.992,186.41,186.39,5.50113246]
[1761832446100,123.992,186.41,186.35,9.78882769]
[1761832446101,103.4,186.41,186.4,6.36329403]
[1761832446604,103.4,186.41,186.4,11.72810089]
[1761832447991,103.4,186.51,186.41,0.14216157]
[1761832448191,5.50113246,186.48,186.43,0.14216157]
[1761832448395,20.592,186.47,186.43,0.14216157]
[1761832448902,20.592,186.47,186.42,5.50113246]
[1761832448903,20.592,186.47,186.42,10.86536376]
[1761832449295,20.592,186.48,186.43,0.71]
[1761832449595,28.94320583,186.48,186.42,13.71543713]
[1761832450108,20.592,186.48,186.45,8.35120583]
[1761832450314,0.52,186.58,186.48,0.14216157]
[1761832450520,8.35120583,186.57,186.52,8.35120583]
[1761832450812,8.35120583,186.57,186.52,8.4933674]
[1761832450977,8.35120583,186.58,186.52,9.2033674]
[1761832451179,28.94320583,186.57,186.52,0.14216157]
[1761832451371,0.2,186.61,186.51,0.14216157]
[1761832451372,8.35120583,186.56,186.51,0.14216157]
[1761832451571,0.72,186.59,186.53,0.14216157]
[1761832451572,0.2,186.59,186.53,0.14216157]
[1761832451807,8.35120583,186.56,186.5,8.35120583]
[1761832451977,8.35120583,186.55,186.51,0.14216157]
[1761832452381,20.592,186.56,186.5,0.14216157]
[1761832452382,8.35120583,186.54,186.5,0.14216157]
[1761832452617,0.2,186.59,186.52,8.4933674]
[1761832452776,20.592,186.57,186.54,8.35120583]
[1761832452985,0.2,186.59,186.57,0.14216157]
[1761832453286,0.2,186.59,186.58,8.4933674]
[1761832453711,0.2,186.59,186.58,9.2033674]
[1761832454617,0.2,186.59,186.55,0.71]
[1761832454824,0.2,186.59,186.57,0.14216157]
[1761832454978,0.2,186.59,186.58,8.4933674]
[1761832455310,0.2,186.61,186.59,0.14216157]
[1761832455527,0.2,186.61,186.59,0.80216157]
[1761832455827,0.2,186.67,186.66,8.4933674]
[1761832455975,0.2,186.67,186.66,9.1533674]
[1761832456317,50.0,186.85,186.66,9.1533674]
[1761832456318,8.35120583,186.77,186.67,0.14216157]